fUSD/lending_fUSD_20250330
["ID","MTS","AMOUNT","RATE_DAILY","PERIOD"]
[356876324,1743353456669,-500.0,0.00049589,120]
[356876325,1743353456679,-500.0,0.00049589,120]
[356876326,1743353456688,-937.87,0.00049589,120]
[356876327,1743353456697,-500.0,0.00049589,120]
[356876328,1743353456707,-822.93,0.00049589,120]
[356876329,1743353456716,-3664.94,0.00049589,2]
[356876330,1743353456726,-500.0,0.00049589,120]
[356876331,1743353456735,-250.893084,0.00049719,120]
[356876332,1743353456744,-495.0,0.00049719,30]
[356876333,1743353456753,-150.0,0.0004984,2]
[356876334,1743353456762,-500.0,0.00049862,120]
[356876335,1743353456771,-500.0,0.00049863,120]
[356876336,1743353456780,-500.0,0.00049863,2]
[356876337,1743353456789,-500.0,0.00049863,120]
[356876338,1743353456798,-500.0,0.00049863,120]
[356876339,1743353456807,-500.0,0.00049863,120]
[356876340,1743353456817,-500.0,0.00049863,120]
[356876341,1743353456826,-739.26,0.00049863,120]
[356876342,1743353456836,-500.0,0.00049863,120]
[356876343,1743353456847,-500.0,0.00049863,120]
[356876344,1743353456856,-500.0,0.00049863,7]
[356876345,1743353456866,-623.28749137,0.00049863,120]
[356876346,1743353456876,-500.0,0.00049863,120]
[356876347,1743353456885,-500.0,0.00049863,120]
[356876348,1743353456896,-500.0,0.00049863,120]
[356876349,1743353456907,-500.0,0.00049863,120]
[356876350,1743353456916,-770.74,0.00049863,2]
[356876351,1743353456926,-500.0,0.00049863,120]
[356876352,1743353456935,-904.69,0.00049863,120]
[356876353,1743353456945,-527.0,0.00049863,120]
[356876354,1743353456954,-989.96,0.00049863,120]
[356876355,1743353456963,-500.0,0.00049863,120]
[356876356,1743353456972,-500.0,0.00049863,120]
[356876357,1743353456981,-500.0,0.00049863,30]
[356876358,1743353456991,-500.0,0.00049863,120]
[356876359,1743353457000,-500.0,0.00049863,120]
[356876360,1743353457009,-500.0,0.00049863,120]
[356876361,1743353457019,-500.0,0.00049863,120]
[356876362,1743353457028,-500.0,0.00049863,120]
[356876363,1743353457037,-500.0,0.00049863,120]
[356876364,1743353457047,-500.0,0.00049863,120]
[356876365,1743353457057,-151.0,0.00049863,120]
[356876366,1743353457066,-500.0,0.00049863,120]
[356876367,1743353457075,-259.880939,0.00049863,120]
[356876368,1743353457084,-261.9622915,0.00049863,120]
[356876369,1743353457093,-20404.35,0.00049863,7]
[356876370,1743353457102,-500.0,0.00049863,120]
[356876371,1743353457112,-151.0,0.00049863,120]
[356876372,1743353457121,-500.0,0.00049863,120]
[356876373,1743353457131,-500.0,0.00049863,120]
[356876374,1743353457140,-253.03612497,0.00049863,120]
[356876375,1743353457150,-574.65202233,0.00049863,120]
[356876376,1743353457160,-500.0,0.00049863,120]
[356876377,1743353457169,-296.89919561,0.00049863,120]
[356876378,1743353457179,-500.0,0.00049863,120]
[356876379,1743353457188,-737.09,0.00049863,30]
[356876380,1743353457198,-500.0,0.00049863,120]
[356876381,1743353457207,-739.94,0.00049863,120]
[356876382,1743353457217,-500.0,0.00049863,120]
[356876383,1743353457227,-672.68,0.00049863,120]
[356876384,1743353457236,-500.0,0.00049863,120]
[356876385,1743353457245,-500.0,0.00049863,120]
[356876386,1743353457255,-500.0,0.00049863,120]
[356876387,1743353457264,-500.0,0.00049863,120]
[356876388,1743353457273,-500.0,0.00049863,120]
[356876389,1743353457282,-500.0,0.00049863,120]
[356876390,1743353457292,-500.0,0.00049863,120]
[356876391,1743353457303,-500.0,0.00049863,120]
[356876392,1743353457313,-235.2658408,0.00049863,120]
[356876393,1743353457323,-181.79783189,0.00049863,120]
[356876394,1743353457332,-500.0,0.00049863,120]
[356876395,1743353457341,-500.0,0.00049863,120]
[356876396,1743353457351,-500.0,0.00049863,120]
[356876397,1743353457359,-500.0,0.00049863,120]
[356876398,1743353457369,-967.89,0.00049863,120]
[356876399,1743353457378,-500.0,0.00049863,120]
[356876400,1743353457388,-500.0,0.00049863,120]
[356876401,1743353457398,-500.0,0.00049863,120]
[356876402,1743353457407,-500.0,0.00049863,120]
[356876403,1743353457417,-500.0,0.00049863,120]
[356876404,1743353457426,-500.0,0.00049863,120]
[356876405,1743353457436,-1560.35,0.00049863,7]
[356876406,1743353457445,-1773.33,0.00049863,2]
[356876407,1743353457454,-500.0,0.00049863,120]
[356876408,1743353457564,-1526.91,0.00049863,120]
[356876409,1743353457574,-500.0,0.00049863,120]
[356876410,1743353457584,-500.0,0.00049863,120]
[356876411,1743353457594,-500.0,0.00049863,120]
[356876412,1743353457602,-962.48,0.00049863,120]
[356876413,1743353457612,-500.0,0.00049863,120]
[356876414,1743353457622,-500.0,0.00049863,120]
[356876415,1743353457631,-500.0,0.00049863,120]
[356876416,1743353457641,-500.0,0.00049863,120]
[356876417,1743353457652,-643.17342188,0.00049863,120]
[356876418,1743353457662,-500.0,0.00049863,120]
[356876419,1743353457672,-500.0,0.00049863,120]
[356876420,1743353457681,-2273.84,0.00049863,120]
[356876421,1743353457691,-500.0,0.00049863,120]
[356876422,1743353457700,-500.0,0.00049863,120]
[356876423,1743353457709,-500.0,0.00049863,120]
[356876424,1743353457718,-937.87,0.00049863,120]
[356876425,1743353457728,-500.0,0.00049863,120]
[356876426,1743353457737,-822.93,0.00049863,120]
[356876427,1743353457746,-3664.94,0.00049863,2]
[356876428,1743353457756,-338.79229243,0.00049863,120]
[356876429,1743353457860,-161.20770757,0.00049863,120]
[356876430,1743353457870,-1500.0,0.000499,18]
[356876431,1743353457879,-16507.3769225,0.0005,50]
[356876432,1743353457891,-639.68088837,0.0005,50]
[356876433,1743353457903,-32852.94218913,0.0005,50]
[356876434,1743353457912,-500.0,0.0005,120]
[356876435,1743353457922,-2860.62949853,0.0005,3]
[356876436,1743353457931,-150.0,0.0005,120]
[356876437,1743353457940,-151.0,0.0005,120]
[356876438,1743353457950,-290.150988,0.0005,120]
[356876439,1743353457959,-214.81,0.00050036,2]
[356876440,1743353457968,-1242.4578018,0.00050122,15]
[356876441,1743353457977,-151.0,0.00050126,120]
[356876442,1743353457987,-500.0,0.00050136,120]
[356876443,1743353457996,-500.0,0.00050136,2]
[356876444,1743353458005,-500.0,0.00050136,120]
[356876445,1743353458014,-500.0,0.00050136,120]
[356876446,1743353458023,-500.0,0.00050136,120]
[356876447,1743353458032,-500.0,0.00050136,120]
[356876448,1743353458041,-739.26,0.00050136,120]
[356876449,1743353458050,-500.0,0.00050136,120]
[356876450,1743353458060,-500.0,0.00050136,120]
[356876451,1743353458069,-505.62051963,0.00050136,7]
[356876452,1743353458078,-326.022571,0.00050136,120]
[356876453,1743353458088,-500.0,0.00050136,120]
[356876454,1743353458097,-330.91141128,0.00050136,120]
[356876455,1743353458109,-169.08858872,0.00050136,120]
[356876456,1743353458118,-500.0,0.00050136,120]
[356876457,1743353458127,-170.61141128,0.00050136,2]
[356876458,1743353458139,-600.12858872,0.00050136,2]
[356876459,1743353458149,-461.84942282,0.00050136,120]
[356876460,1743353458161,-38.15057718,0.00050136,120]
[356876461,1743353458170,-880.49999782,0.00050136,120]
[356876475,1743354631828,-250.0,0.00025,2]
[356876476,1743354631839,-350.0,0.00025925,3]
[356876477,1743354631849,-313.07886982,0.00026849,2]
[356876478,1743354631858,-169.45,0.00026849,2]
[356876479,1743354631868,-300.0,0.00027,2]
[356876480,1743354631877,-151.94441104,0.000274,2]
[356876481,1743354631887,-350.0,0.00027457,3]
[356876482,1743354631896,-350.0,0.000275,3]
[356876483,1743354631905,-350.0,0.00029,2]
[356876484,1743354631915,-400.0,0.00031,2]
[356876485,1743354631924,-169.45,0.00032646,2]
[356876486,1743354631934,-450.0,0.00033,2]
[356876487,1743354631944,-500.0,0.00035,2]
[356876488,1743354631953,-1149.7931381,0.000372,103]
[356876489,1743354631963,-1149.79313806,0.000372,103]
[356876490,1743354631971,-154.939068,0.00037516,2]
[356876491,1743354631981,-169.45,0.00038443,2]
[356876492,1743354631990,-1679.0,0.000389,2]
[356876493,1743354632002,-177.0,0.00041,14]
[356876494,1743354632012,-154.939068,0.00041592,3]
[356876495,1743354632021,-1679.7417137,0.000416,2]
[356876496,1743354632031,-1149.79313806,0.000429,120]
[356876497,1743354632040,-169.45,0.00044239,2]
[356876498,1743354632049,-250.0,0.00045377,120]
[356876499,1743354632059,-161.52,0.0004553,120]
[356876500,1743354632068,-500.0,0.00045562,2]
[356876501,1743354632078,-194.99,0.00045581,2]
[356876502,1743354632087,-154.939068,0.00045995,3]
[356876504,1743354632097,-154.939068,0.00046258,2]
[356876506,1743354632106,-5000.0,0.00046289,2]
[356876507,1743354632115,-163.28,0.00046493,2]
[356876509,1743354632125,-250.0,0.00047124,120]
[356876511,1743354632134,-160.17,0.00047682,2]
[356876513,1743354632144,-153.21,0.00048214,2]
[356876515,1743354632153,-246.694,0.00048214,82]
[356876517,1743354632162,-18904.17877541,0.00048305,2]
[356876519,1743354632177,-625.19937617,0.00048305,2]
[356876558,1743354637704,-1042.82955653,0.00048305,2]
[356876559,1743354637759,-3327.79229189,0.00048305,2]
[356876560,1743354637769,-1000.0,0.0004848,2]
[356876561,1743354637779,-556.0,0.00048715,30]
[356876562,1743354637789,-261.42477661,0.00049,2]
[356876563,1743354637799,-151.94441104,0.00049215,2]
[356876564,1743354637809,-556.0,0.00049217,30]
[356876565,1743354637819,-200.0,0.00049285,2]
[356876566,1743354637828,-500.0,0.00049315,120]
[356876567,1743354637837,-220.27852046,0.00049315,5]
[356876568,1743354637848,-279.72147954,0.00049315,5]
[356876569,1743354637857,-311.28668394,0.00049315,120]
[356876570,1743354637867,-592.81902447,0.00049315,120]
[356876571,1743354637876,-525.19322549,0.00049315,120]
[356876572,1743354637886,-500.0,0.00049315,120]
[356876573,1743354637895,-500.0,0.00049315,2]
[356876574,1743354637904,-7.64481284,0.00049315,3]
[356876575,1743354637915,-492.35518716,0.00049315,3]
[356876576,1743354637924,-525.67923705,0.00049315,120]
[356876577,1743354637933,-511.94932469,0.00049315,120]
[356876578,1743354637942,-266.3144904,0.00049315,120]
[356876579,1743354637951,-500.0,0.00049315,120]
[356876580,1743354637960,-515.00249052,0.00049315,120]
[356876581,1743354637969,-500.0,0.00049315,120]
[356876582,1743354637978,-531.76269306,0.00049315,120]
[356876583,1743354637987,-501.61600982,0.00049315,120]
[356876584,1743354637996,-501.35189761,0.00049315,120]
[356876585,1743354638008,-500.0,0.00049315,120]
[356876586,1743354638017,-500.0,0.00049315,120]
[356876587,1743354638026,-500.0,0.00049315,120]
[356876588,1743354638035,-400.33905437,0.00049315,120]
[356876589,1743354638044,-500.0,0.00049315,120]
[356876590,1743354638054,-504.53735185,0.00049315,120]
[356876591,1743354638063,-500.0,0.00049315,120]
[356876592,1743354638072,-500.0,0.00049315,2]
[356876593,1743354638082,-500.0,0.00049315,120]
[356876594,1743354638091,-500.0,0.00049315,120]
[356876595,1743354638100,-503.10032788,0.00049315,120]
[356876596,1743354638109,-500.0,0.00049315,120]
[356876597,1743354638119,-500.0,0.00049315,120]
[356876598,1743354638127,-500.0,0.00049315,120]
[356876600,1743354638136,-500.0,0.00049315,120]
[356876601,1743354638145,-500.0,0.00049315,120]
[356876603,1743354638154,-500.0,0.00049315,120]
[356876605,1743354638164,-500.0,0.00049373,10]
[356876607,1743354638173,-300.9644,0.00049489,2]
[356876610,1743354638183,-1693.0808,0.00049489,2]
[356876611,1743354638191,-349.29877122,0.00049589,120]
[356876613,1743354638200,-500.0,0.00049589,120]
[356876614,1743354638210,-500.0,0.00049589,120]
[356876615,1743354638219,-500.0,0.00049589,120]
[356876616,1743354638228,-500.0,0.00049589,120]
[356876617,1743354638237,-564.8464646,0.00049589,120]
[356876618,1743354638246,-556.0,0.00049719,30]
[356876619,1743354638256,-500.0,0.00049863,120]
[356876620,1743354638265,-501.45396787,0.00049863,120]
[356876621,1743354638274,-500.0,0.00049863,120]
[356876622,1743354638284,-500.0,0.00049863,120]
[356876623,1743354638293,-1149.79313806,0.000499,120]
[356876624,1743354638302,-500.0,0.0005,120]
[356876625,1743354638311,-1910.74646766,0.0005,90]
[356876626,1743354638321,-500.0,0.0005,120]
[356876627,1743354638330,-499.44379424,0.0005,120]
[356876628,1743354638339,-500.0,0.0005,120]
[356876629,1743354638348,-500.0,0.0005,120]
[356876630,1743354638357,-500.0,0.0005,120]
[356876631,1743354638367,-4462.7028,0.00050036,2]
[356876632,1743354638376,-496.98312073,0.00050036,15]
[356876633,1743354638385,-169.45,0.00050036,2]
[356876634,1743354638394,-500.00000635,0.000501,120]
[356876635,1743354638404,-197.69127076,0.00050135,120]
[356876636,1743354638413,-161.41380389,0.00050135,120]
[356876637,1743354638423,-500.0,0.00050135,120]
[356876638,1743354638431,-500.0,0.00050135,120]
[356876639,1743354638440,-500.0,0.00050135,120]
[356876640,1743354638449,-500.0,0.00050135,120]
[356876641,1743354638458,-500.0,0.00050135,120]
[356876642,1743354638467,-500.0,0.00050135,120]
[356876643,1743354638476,-126.16634799,0.00050135,120]
[356876644,1743354638635,-474.8264854,0.00050135,120]
[356876645,1743354638653,-500.0,0.00050135,120]
[356876646,1743354638663,-500.0,0.00050135,120]
[356876647,1743354638673,-300.0,0.00050135,120]
[356876648,1743354638682,-18807.3985146,0.00050136,7]
[356876649,1743354638694,-752.519241,0.00050136,7]
[356876650,1743354638706,-844.4322444,0.00050136,7]
[356876651,1743354638718,-200.0,0.00050136,15]
[356876652,1743354638727,-500.0,0.00050136,120]
[356876653,1743354638737,-200.0,0.00050136,15]
[356876654,1743354638746,-500.0,0.00050136,120]
[356876655,1743354638757,-500.0,0.00050136,120]
[356876656,1743354638766,-151.0,0.00050136,60]
[356876657,1743354638775,-15485.3177556,0.00050136,120]
[356876658,1743354638788,-306.12207889,0.00050136,120]
[356876661,1743354639770,-150.0,0.000501,120]
[356876662,1743354639780,-1757.61631091,0.00050136,120]
[356876663,1743354639792,-2450.9438546,0.00050136,120]
[356876664,1743354639803,-570.1776864,0.00050177,60]
[356876665,1743354639813,-1266.238459,0.00050198,2]
[356876666,1743354639825,-1233.761541,0.00050198,2]
[356876667,1743354639834,-556.0,0.00050221,30]
[356876668,1743354639844,-233.12744582,0.00050221,30]
[356876669,1743354639854,-272.6911,0.00050298,2]
[356876670,1743354639863,-775.01803648,0.00050298,2]
[356876671,1743354639874,-2487.90426352,0.00050298,2]
[356876672,1743354639883,-261.3326,0.00050298,2]
[356876673,1743354639893,-420.89,0.0005031,2]
[356876674,1743354639902,-1106.87313648,0.0005031,2]
[356876675,1743354639914,-169.36606352,0.0005031,2]
[356876676,1743354639924,-396.253,0.0005031,2]
[356876677,1743354639933,-395.02677749,0.0005031,2]
[356876678,1743354639946,-604.97322251,0.0005031,2]
[356876679,1743354639956,-1000.0,0.0005031,2]
[356876680,1743354639966,-157.956745,0.00050398,3]
[356876681,1743354639975,-154.939068,0.00050398,3]
[356876682,1743354639985,-754.92,0.00050409,120]
[356876683,1743354639995,-500.0,0.00050409,30]
[356876684,1743354640007,-494.04213195,0.00050409,120]
[356876685,1743354640019,-5.95786805,0.00050409,120]
[356876686,1743354640029,-1004.4619,0.00050409,30]
[356876687,1743354640038,-500.0,0.00050409,120]
[356876688,1743354640048,-500.0,0.00050409,120]
[356876689,1743354640057,-134.76658745,0.00050409,120]
[356876690,1743354640069,-365.23341255,0.00050409,120]
[356876691,1743354640079,-500.0,0.00050409,120]
[356876692,1743354640088,-500.0,0.00050409,120]
[356876693,1743354640098,-500.0,0.00050409,120]
[356876694,1743354640108,-263.69005938,0.00050409,120]
[356876695,1743354640118,-500.0,0.00050409,120]
[356876696,1743354640127,-500.0,0.00050409,120]
[356876697,1743354640137,-500.0,0.00050409,120]
[356876698,1743354640147,-500.0,0.00050409,120]
[356876699,1743354640156,-1001.9316,0.00050409,30]
[356876700,1743354640165,-500.0,0.00050409,120]
[356876701,1743354640175,-500.0,0.00050409,120]
[356876702,1743354640184,-500.0,0.00050409,120]
[356876703,1743354640193,-500.0,0.00050409,120]
[356876704,1743354640203,-1365.31,0.00050409,7]
[356876705,1743354640213,-500.0,0.00050409,120]
[356876706,1743354640223,-500.0,0.00050409,120]
[356876707,1743354640232,-500.0,0.00050409,120]
[356876708,1743354640241,-500.0,0.00050409,120]
[356876709,1743354640251,-500.0,0.00050409,120]
[356876710,1743354640260,-500.0,0.00050409,120]
[356876711,1743354640269,-20404.35,0.0005041,7]
[356876712,1743354640279,-500.0,0.0005041,120]
[356876713,1743354640288,-496.98312072,0.00050493,15]
[356876714,1743354640298,-500.0,0.00050495,120]
[356876715,1743354640307,-500.0,0.00050495,120]
[356876716,1743354640317,-519.96427029,0.00050496,2]
[356876717,1743354640325,-500.0,0.000505,120]
[356876718,1743354640335,-227.56,0.0005051,2]
[356876719,1743354640345,-434.9709691,0.00050541,120]
[356876720,1743354640355,-200.0,0.00050637,15]
[356876721,1743354640365,-631.48776162,0.00050673,2]
[356876722,1743354640375,-500.0,0.00050682,120]
[356876723,1743354640385,-846.9,0.00050682,120]
[356876724,1743354640396,-500.0,0.00050682,120]
[356876725,1743354640406,-500.0,0.00050682,120]
[356876726,1743354640416,-1551.66,0.00050682,2]
[356876727,1743354640426,-500.0,0.00050682,120]
[356876728,1743354640436,-500.0,0.00050682,120]
[356876729,1743354640446,-500.0,0.00050682,120]
[356876730,1743354640456,-820.63,0.00050682,120]
[356876731,1743354640466,-647.45,0.00050683,120]
[356876732,1743354640476,-233.42986792,0.00050683,120]
[356876733,1743354640485,-500.0,0.00050683,120]
[356876734,1743354640495,-500.0,0.00050683,120]
[356876735,1743354640507,-642.28,0.00050683,2]
[356876736,1743354640516,-500.0,0.00050683,120]
[356876737,1743354640526,-500.0,0.00050683,120]
[356876738,1743354640535,-754.92,0.00050683,120]
[356876739,1743354640545,-866.21,0.00050683,120]
[356876740,1743354640554,-500.0,0.00050683,30]
[356876741,1743354640563,-500.0,0.00050683,120]
[356876742,1743354640573,-500.0,0.00050683,120]
[356876743,1743354640585,-500.0,0.00050683,120]
[356876744,1743354640594,-500.0,0.00050683,120]
[356876745,1743354640603,-373.31972026,0.00050683,120]
[356876746,1743354640613,-500.0,0.00050683,120]
[356876747,1743354640622,-500.0,0.00050683,120]
[356876748,1743354640631,-500.0,0.00050683,120]
[356876749,1743354640641,-500.0,0.00050683,120]
[356876750,1743354640650,-720.07,0.00050683,120]
[356876751,1743354640659,-500.0,0.00050683,120]
[356876752,1743354640669,-500.0,0.00050683,120]
[356876753,1743354640678,-500.0,0.00050683,120]
[356876754,1743354640688,-644.95,0.00050683,30]
[356876755,1743354640698,-500.0,0.00050683,120]
[356876756,1743354640708,-500.0,0.00050683,30]
[356876757,1743354640722,-500.0,0.00050683,120]
[356876758,1743354640731,-588.6,0.00050683,120]
[356876759,1743354640741,-500.0,0.00050683,2]
[356876760,1743354640751,-500.0,0.00050683,120]
[356876761,1743354640761,-521.96445191,0.00050683,120]
[356876762,1743354640770,-346.76268324,0.00050683,120]
[356876763,1743354640780,-580.70554521,0.00050683,120]
[356876764,1743354640790,-500.0,0.00050683,120]
[356876765,1743354640801,-500.0,0.00050683,120]
[356876766,1743354640811,-500.0,0.00050683,120]
[356876767,1743354640820,-500.0,0.00050683,120]
[356876768,1743354640830,-500.0,0.00050683,120]
[356876769,1743354640840,-616.05,0.00050683,120]
[356876770,1743354640850,-500.0,0.00050683,120]
[356876771,1743354640860,-500.0,0.00050683,120]
[356876772,1743354640870,-500.0,0.00050683,120]
[356876773,1743354640879,-548.47,0.00050683,120]
[356876774,1743354640888,-500.0,0.00050683,120]
[356876775,1743354640898,-500.0,0.00050683,120]
[356876776,1743354640908,-500.0,0.00050683,120]
[356876777,1743354640917,-500.0,0.00050683,120]
[356876778,1743354640927,-1365.31,0.00050683,7]
[356876779,1743354640936,-500.0,0.00050683,120]
[356876780,1743354640945,-500.0,0.00050683,120]
[356876781,1743354640956,-500.0,0.00050683,120]
[356876782,1743354640975,-1336.05,0.00050683,120]
[356876783,1743354640984,-500.0,0.00050683,120]
[356876784,1743354640993,-470.15879746,0.00050683,120]
[356876785,1743354641004,-500.0,0.00050683,120]
[356876786,1743354641013,-842.17,0.00050683,120]
[356876787,1743354641022,-500.0,0.00050683,120]
[356876788,1743354641031,-514.76517805,0.00050683,120]
[356876789,1743354641040,-500.0,0.00050683,120]
[356876790,1743354641050,-500.0,0.00050683,120]
[356876791,1743354641059,-500.0,0.00050683,120]
[356876792,1743354641068,-553.69721272,0.00050683,120]
[356876793,1743354641081,-1435.91278728,0.00050683,120]
[356876794,1743354641091,-500.0,0.00050683,120]
[356876795,1743354641101,-500.0,0.00050683,120]
[356876796,1743354641110,-3206.82,0.00050683,2]
[356876797,1743354641120,-20404.35,0.00050684,7]
[356876798,1743354641130,-500.0,0.00050684,120]
[356876799,1743354641139,-556.0,0.00050724,30]
[356876800,1743354641149,-693.37564731,0.00050745,60]
[356876801,1743354641158,-500.0,0.00050769,120]
[356876802,1743354641168,-184.66028318,0.00050769,120]
[356876803,1743354641177,-3673.549,0.00050858,2]
[356876804,1743354641186,-88888.0,0.00050858,120]
[356876805,1743354641195,-496.98312072,0.00050949,15]
[356876806,1743354641205,-500.0,0.00050956,120]
[356876807,1743354641214,-846.9,0.00050956,120]
[356876808,1743354641223,-500.0,0.00050956,120]
[356876809,1743354641232,-500.0,0.00050956,120]
[356876810,1743354641241,-1551.66,0.00050956,2]
[356876811,1743354641251,-500.0,0.00050956,120]
[356876812,1743354641259,-500.0,0.00050956,120]
[356876813,1743354641269,-236.22811072,0.00050956,120]
[356876814,1743354641278,-820.63,0.00050956,120]
[356876815,1743354641287,-647.45,0.00050957,120]
[356876816,1743354641296,-500.0,0.00050957,120]
[356876817,1743354641305,-500.0,0.00050957,120]
[356876818,1743354641314,-642.28,0.00050957,2]
[356876819,1743354641324,-500.0,0.00050957,120]
[356876820,1743354641333,-500.0,0.00050957,120]
[356876821,1743354641342,-754.92,0.00050957,120]
[356876822,1743354641352,-866.21,0.00050957,120]
[356876823,1743354641361,-500.0,0.00050957,30]
[356876824,1743354641370,-500.0,0.00050957,120]
[356876825,1743354641379,-500.0,0.00050957,120]
[356876826,1743354641389,-500.0,0.00050957,120]
[356876827,1743354641398,-500.0,0.00050957,120]
[356876828,1743354641407,-500.0,0.00050957,120]
[356876829,1743354641417,-415.13973628,0.00050957,120]
[356876830,1743354641426,-247.90325776,0.00050957,120]
[356876831,1743354641435,-500.0,0.00050957,120]
[356876832,1743354641444,-720.07,0.00050957,120]
[356876833,1743354641454,-500.0,0.00050957,120]
[356876834,1743354641464,-500.0,0.00050957,120]
[356876835,1743354641474,-500.0,0.00050957,120]
[356876836,1743354641484,-644.95,0.00050957,30]
[356876837,1743354641493,-500.0,0.00050957,120]
[356876838,1743354641504,-500.0,0.00050957,120]
[356876839,1743354641514,-588.6,0.00050957,120]
[356876840,1743354641523,-500.0,0.00050957,2]
[356876841,1743354641532,-500.0,0.00050957,120]
[356876842,1743354641542,-500.0,0.00050957,120]
[356876843,1743354641551,-500.0,0.00050957,120]
[356876844,1743354641560,-500.0,0.00050957,120]
[356876845,1743354641569,-500.0,0.00050957,120]
[356876846,1743354641579,-616.05,0.00050957,120]
[356876847,1743354641588,-500.0,0.00050957,120]
[356876848,1743354641598,-500.0,0.00050957,120]
[356876849,1743354641609,-347.50246773,0.00050957,120]
[356876850,1743354641619,-500.0,0.00050957,120]
[356876851,1743354641627,-500.0,0.00050957,120]
[356876852,1743354641637,-500.0,0.00050957,120]
[356876853,1743354641646,-500.0,0.00050957,120]
[356876854,1743354641656,-1365.31,0.00050957,7]
[356876855,1743354641665,-500.0,0.00050957,120]
[356876856,1743354641675,-500.0,0.00050957,120]
[356876857,1743354641685,-500.0,0.00050957,120]
[356876858,1743354641694,-1336.05,0.00050957,120]
[356876859,1743354641704,-500.0,0.00050957,120]
[356876860,1743354641715,-500.0,0.00050957,120]
[356876861,1743354641727,-842.17,0.00050957,120]
[356876862,1743354641737,-500.0,0.00050957,120]
[356876863,1743354641747,-500.0,0.00050957,120]
[356876864,1743354641759,-500.0,0.00050957,120]
[356876865,1743354641769,-529.62618818,0.00050957,120]
[356876866,1743354641781,-1989.61,0.00050957,120]
[356876867,1743354641791,-500.0,0.00050957,120]
[356876868,1743354641803,-608.34525154,0.00050957,120]
[356876869,1743354641813,-3206.82,0.00050957,2]
[356876870,1743354641822,-20404.35,0.00050958,7]
[356876871,1743354641832,-500.0,0.00050958,120]
[356876872,1743354641841,-251.7355,0.0005097,21]
[356876873,1743354641850,-1108.0,0.00051,120]
[356876874,1743354641859,-556.3471,0.00051,120]
[356876875,1743354641868,-500.0,0.00051043,120]
[356876876,1743354641877,-695.77256364,0.00051126,23]
[356876877,1743354641886,-500.0,0.00051164,120]
[356876878,1743354641896,-1204.41376082,0.00051197,2]
[356876879,1743354641905,-556.0,0.00051226,30]
[356876880,1743354641914,-2510.43,0.00051226,120]
[356876881,1743354641923,-396.01280519,0.0005123,120]
[356876882,1743354641935,-103.98719481,0.0005123,120]
[356876883,1743354641945,-846.9,0.0005123,120]
[356876884,1743354641954,-500.0,0.0005123,120]
[356876885,1743354641964,-500.0,0.0005123,120]
[356876886,1743354641974,-1551.66,0.0005123,2]
[356876887,1743354641983,-500.0,0.0005123,120]
[356876888,1743354641992,-500.0,0.0005123,120]
[356876889,1743354642002,-820.63,0.0005123,120]
[356876890,1743354642011,-647.45,0.00051231,120]
[356876891,1743354642021,-500.0,0.00051231,120]